[Event "Early-Titled-Tuesday-Blitz-February-06-2024"]
[Site "Chess.com"]
[Date "2024.02.06"]
[Round "2"]
[White "GP9isback23"]
[Black "Zhigalko_Sergei"]
[Result "1/2-1/2"]
[WhiteElo "2632"]
[BlackElo "2938"]
[TimeControl "180+1"]
[EndTime "8:16:46 PST"]
[Termination "Game drawn by agreement"]

1. d4 {[%clk 0:03:00.9]} 1... Nf6 {[%clk 0:03:00.1]} 2. Nf3 {[%clk 0:03:00.7]}
2... e6 {[%clk 0:03:00.4]} 3. e3 {[%clk 0:03:01.1]} 3... b6 {[%clk 0:03:00.4]}
4. Be2 {[%clk 0:03:02]} 4... Bb7 {[%clk 0:03:00.7]} 5. O-O {[%clk 0:03:02.7]}
5... d5 {[%clk 0:03:00.4]} 6. b3 {[%clk 0:03:03.1]} 6... Bd6 {[%clk 0:03:00.9]}
7. Bb2 {[%clk 0:03:03.7]} 7... O-O {[%clk 0:03:01.5]} 8. c4 {[%clk 0:03:04.4]}
8... Nbd7 {[%clk 0:03:01.2]} 9. Nbd2 {[%clk 0:03:05.1]} 9... Qe7 {[%clk
0:03:00.4]} 10. Rc1 {[%clk 0:03:04]} 10... Rad8 {[%clk 0:02:58]} 11. Qc2 {[%clk
0:03:04.1]} 11... Ne4 {[%clk 0:02:54.1]} 12. cxd5 {[%clk 0:02:24.5]} 12... exd5
{[%clk 0:02:42.4]} 13. Nxe4 {[%clk 0:02:24.2]} 13... dxe4 {[%clk 0:02:43.3]} 14.
Nd2 {[%clk 0:02:24.9]} 14... c5 {[%clk 0:02:37.7]} 15. Nc4 {[%clk 0:02:22.6]}
15... Bb8 {[%clk 0:02:36.8]} 16. Rfd1 {[%clk 0:02:22]} 16... h6 {[%clk
0:02:27.8]} 17. Rd2 {[%clk 0:02:07.4]} 17... cxd4 {[%clk 0:02:14.2]} 18. Rxd4
{[%clk 0:01:55.6]} 18... Nc5 {[%clk 0:02:10.9]} 19. Rcd1 {[%clk 0:01:53.8]}
19... Rxd4 {[%clk 0:02:01.2]} 20. Rxd4 {[%clk 0:01:51.1]} 20... Ne6 {[%clk
0:01:07.3]} 21. Rd2 {[%clk 0:01:47.7]} 21... Rc8 {[%clk 0:01:06.6]} 22. Qd1
{[%clk 0:01:47.2]} 22... Bc6 {[%clk 0:00:56.9]} 23. Nd6 {[%clk 0:01:37.4]} 23...
Bxd6 {[%clk 0:00:38.7]} 24. Rxd6 {[%clk 0:01:36.8]} 24... Rd8 {[%clk 0:00:34.5]}
25. Rxd8+ {[%clk 0:01:23.9]} 25... Nxd8 {[%clk 0:00:32.2]} 26. Qc1 {[%clk
0:01:16.1]} 26... Qd7 {[%clk 0:00:28.6]} 27. Qc3 {[%clk 0:01:12.6]} 27... Ne6
{[%clk 0:00:28.5]} 28. h3 {[%clk 0:01:11.7]} 28... f6 {[%clk 0:00:13.5]} 29. Bg4
{[%clk 0:01:11.9]} 29... Qd5 {[%clk 0:00:12.3]} 30. Bxe6+ {[%clk 0:00:54]} 30...
Qxe6 {[%clk 0:00:12.1]} 31. Qd4 {[%clk 0:00:54.1]} 31... Qd5 {[%clk 0:00:12.3]}
32. Qxd5+ {[%clk 0:00:54.4]} 32... Bxd5 {[%clk 0:00:13.2]} 33. Bd4 {[%clk
0:00:54.3]} 33... Kf7 {[%clk 0:00:13]} 34. Kf1 {[%clk 0:00:54.8]} 34... h5
{[%clk 0:00:12.9]} 35. Ke2 {[%clk 0:00:49.6]} 35... Ke6 {[%clk 0:00:12.9]}
1/2-1/2

[Event "Early-Titled-Tuesday-Blitz-February-06-2024"]
[Site "Chess.com"]
[Date "2024.02.06"]
[Round "2"]
[White "Omranalhosani21"]
[Black "flomarechot"]
[Result "1-0"]
[WhiteElo "2508"]
[BlackElo "2306"]
[TimeControl "180+1"]
[EndTime "8:16:46 PST"]
[Termination "Omranalhosani21 won by resignation"]

1. Nf3 {[%clk 0:03:00.9]} 1... Nf6 {[%clk 0:02:59.4]} 2. g3 {[%clk 0:03:00.7]}
2... d6 {[%clk 0:02:56.6]} 3. Bg2 {[%clk 0:03:01.6]} 3... g6 {[%clk 0:02:55.8]}
4. O-O {[%clk 0:03:02.5]} 4... Bg7 {[%clk 0:02:55.5]} 5. d4 {[%clk 0:03:03.2]}
5... O-O {[%clk 0:02:54.5]} 6. c4 {[%clk 0:03:02]} 6... c5 {[%clk 0:02:41.4]} 7.
Nc3 {[%clk 0:03:00.3]} 7... Bf5 {[%clk 0:02:40.6]} 8. Qb3 {[%clk 0:02:48.9]}
8... Nc6 {[%clk 0:02:10.3]} 9. dxc5 {[%clk 0:02:44.1]} 9... dxc5 {[%clk
0:02:08.5]} 10. Qxb7 {[%clk 0:02:42.5]} 10... Na5 {[%clk 0:01:55.5]} 11. Qb5
{[%clk 0:02:42.1]} 11... Bd7 {[%clk 0:01:52.1]} 12. Qxc5 {[%clk 0:02:41.2]}
12... Rc8 {[%clk 0:01:41.8]} 13. Qa3 {[%clk 0:02:40.3]} 13... Nxc4 {[%clk
0:01:33]} 14. Qxa7 {[%clk 0:02:39]} 14... Bc6 {[%clk 0:01:12.1]} 15. Rd1 {[%clk
0:02:35.8]} 15... Qe8 {[%clk 0:01:00.9]} 16. Qd4 {[%clk 0:02:03.7]} 16... Ne4
{[%clk 0:00:45.1]} 17. Qxc4 {[%clk 0:01:07.1]} 17... Nxc3 {[%clk 0:00:44.8]} 18.
bxc3 {[%clk 0:01:08]} 18... Bxf3 {[%clk 0:00:43.9]} 19. Qh4 {[%clk 0:01:08.9]}
19... Bxg2 {[%clk 0:00:42.1]} 20. Kxg2 {[%clk 0:01:09]} 20... Qc6+ {[%clk
0:00:33]} 21. f3 {[%clk 0:01:05.2]} 21... Qxc3 {[%clk 0:00:31.8]} 22. Bh6 {[%clk
0:01:03.6]} 22... Qxa1 {[%clk 0:00:14.8]} 23. Rxa1 {[%clk 0:01:01.3]} 23... Bxa1
{[%clk 0:00:14.3]} 24. Bxf8 {[%clk 0:01:00.8]} 24... Rxf8 {[%clk 0:00:15.2]} 25.
Qxe7 {[%clk 0:01:00.1]} 25... Ra8 {[%clk 0:00:13.8]} 26. a3 {[%clk 0:00:47.3]}
26... Bb2 {[%clk 0:00:13.5]} 27. Qb7 {[%clk 0:00:47.1]} 27... Rxa3 {[%clk
0:00:09.4]} 28. Qb8+ {[%clk 0:00:47]} 1-0

[Event "Early-Titled-Tuesday-Blitz-February-06-2024"]
[Site "Chess.com"]
[Date "2024.02.06"]
[Round "2"]
[White "SujanaLohani"]
[Black "claudyna16"]
[Result "0-1"]
[WhiteElo "1995"]
[BlackElo "2418"]
[TimeControl "180+1"]
[EndTime "8:16:46 PST"]
[Termination "claudyna16 won on time"]

1. d4 {[%clk 0:03:00.9]} 1... Nf6 {[%clk 0:02:59.2]} 2. Nf3 {[%clk 0:02:55.6]}
2... g6 {[%clk 0:02:59.1]} 3. c4 {[%clk 0:02:52.9]} 3... Bg7 {[%clk 0:02:58.9]}
4. g3 {[%clk 0:02:47.9]} 4... O-O {[%clk 0:02:58]} 5. Bg2 {[%clk 0:02:46.1]}
5... d6 {[%clk 0:02:58.2]} 6. O-O {[%clk 0:02:46]} 6... Nc6 {[%clk 0:02:58.5]}
7. Nc3 {[%clk 0:02:46.2]} 7... e5 {[%clk 0:02:58.6]} 8. d5 {[%clk 0:02:42.1]}
8... Nb8 {[%clk 0:02:54.3]} 9. e4 {[%clk 0:02:26.5]} 9... a5 {[%clk 0:02:53.3]}
10. Be3 {[%clk 0:02:23.1]} 10... Na6 {[%clk 0:02:41.6]} 11. a3 {[%clk 0:02:21]}
11... Nc5 {[%clk 0:02:28.4]} 12. Bxc5 {[%clk 0:02:04.2]} 12... dxc5 {[%clk
0:02:28.1]} 13. Nxe5 {[%clk 0:02:00.8]} 13... Nxe4 {[%clk 0:02:19.7]} 14. Nxe4
{[%clk 0:01:47.9]} 14... Bxe5 {[%clk 0:02:13.5]} 15. Qc2 {[%clk 0:01:30.2]}
15... b6 {[%clk 0:02:08.1]} 16. Rae1 {[%clk 0:01:25.5]} 16... Bd4 {[%clk
0:02:01.5]} 17. h3 {[%clk 0:01:21.3]} 17... Bf5 {[%clk 0:01:55]} 18. g4 {[%clk
0:01:04.8]} 18... Bd7 {[%clk 0:01:48.4]} 19. Kh2 {[%clk 0:00:58.2]} 19... h5
{[%clk 0:01:44.5]} 20. gxh5 {[%clk 0:00:46.2]} 20... Qh4 {[%clk 0:01:42.1]} 21.
Ng3 {[%clk 0:00:29.4]} 21... Kg7 {[%clk 0:01:30.3]} 22. hxg6 {[%clk 0:00:26.2]}
22... fxg6 {[%clk 0:01:29.8]} 23. Qe4 {[%clk 0:00:25.4]} 23... Qxe4 {[%clk
0:01:21.5]} 24. Rxe4 {[%clk 0:00:24.9]} 24... Rae8 {[%clk 0:01:21.6]} 25. Rfe1
{[%clk 0:00:16.1]} 25... Rxe4 {[%clk 0:01:17.3]} 26. Rxe4 {[%clk 0:00:15.6]}
26... Rxf2 {[%clk 0:01:16.3]} 27. Re7+ {[%clk 0:00:14.4]} 27... Rf7 {[%clk
0:01:16.8]} 28. Rxf7+ {[%clk 0:00:10.3]} 28... Kxf7 {[%clk 0:01:17.7]} 29. b3
{[%clk 0:00:10.3]} 29... a4 {[%clk 0:01:14]} 30. b4 {[%clk 0:00:09.2]} 30...
cxb4 {[%clk 0:01:13.3]} 31. axb4 {[%clk 0:00:08.9]} 31... a3 {[%clk 0:01:13.7]}
32. Ne2 {[%clk 0:00:08]} 32... Be5+ {[%clk 0:01:12.6]} 33. Kg1 {[%clk
0:00:07.4]} 33... a2 {[%clk 0:01:11.4]} 0-1

[Event "Early-Titled-Tuesday-Blitz-February-06-2024"]
[Site "Chess.com"]
[Date "2024.02.06"]
[Round "2"]
[White "FARIZA2018"]
[Black "Zapateado"]
[Result "0-1"]
[WhiteElo "2522"]
[BlackElo "2367"]
[TimeControl "180+1"]
[EndTime "8:16:47 PST"]
[Termination "Zapateado won by resignation"]

1. e4 {[%clk 0:03:00.9]} 1... c5 {[%clk 0:03:00.3]} 2. Nf3 {[%clk 0:03:00.5]}
2... g6 {[%clk 0:03:01]} 3. d4 {[%clk 0:03:01]} 3... cxd4 {[%clk 0:03:01.9]} 4.
Nxd4 {[%clk 0:03:01.6]} 4... Nc6 {[%clk 0:03:02]} 5. Nc3 {[%clk 0:03:01.9]} 5...
Bg7 {[%clk 0:03:02.7]} 6. Be3 {[%clk 0:03:02]} 6... Nf6 {[%clk 0:03:03.3]} 7. f3
{[%clk 0:03:02.3]} 7... O-O {[%clk 0:03:03.6]} 8. Qd2 {[%clk 0:02:56.4]} 8... d5
{[%clk 0:03:03.3]} 9. exd5 {[%clk 0:02:46.2]} 9... Nxd5 {[%clk 0:03:04.2]} 10.
Nxc6 {[%clk 0:02:45.9]} 10... bxc6 {[%clk 0:02:51.7]} 11. Bd4 {[%clk 0:02:45.7]}
11... e5 {[%clk 0:02:39]} 12. Bc5 {[%clk 0:02:45]} 12... Re8 {[%clk 0:02:38]}
13. O-O-O {[%clk 0:02:40.9]} 13... Be6 {[%clk 0:02:13.6]} 14. Bc4 {[%clk
0:02:39.5]} 14... Qh4 {[%clk 0:02:02.5]} 15. Bxd5 {[%clk 0:02:01.8]} 15... cxd5
{[%clk 0:02:00]} 16. Kb1 {[%clk 0:01:59.8]} 16... Rec8 {[%clk 0:01:45.5]} 17.
Bf2 {[%clk 0:01:55.1]} 17... Qc4 {[%clk 0:01:24.9]} 18. Qd3 {[%clk 0:01:47.2]}
18... d4 {[%clk 0:00:34.2]} 19. Qxc4 {[%clk 0:01:46.2]} 19... Bxc4 {[%clk
0:00:32.9]} 20. Ne4 {[%clk 0:01:45.9]} 20... Rc6 {[%clk 0:00:28]} 21. c3 {[%clk
0:01:36.9]} 21... f5 {[%clk 0:00:28]} 22. Nd2 {[%clk 0:01:20.9]} 22... Bd3+
{[%clk 0:00:27.7]} 23. Ka1 {[%clk 0:01:17.4]} 23... dxc3 {[%clk 0:00:28.1]} 24.
bxc3 {[%clk 0:01:16.9]} 24... Rxc3 {[%clk 0:00:27.2]} 25. Nb1 {[%clk 0:00:45.8]}
25... e4 {[%clk 0:00:19.5]} 26. Kb2 {[%clk 0:00:37.3]} 26... Rb8+ {[%clk
0:00:15.5]} 0-1

[Event "Early-Titled-Tuesday-Blitz-February-06-2024"]
[Site "Chess.com"]
[Date "2024.02.06"]
[Round "2"]
[White "ChainedDowntohell"]
[Black "ilqar_74"]
[Result "0-1"]
[WhiteElo "2565"]
[BlackElo "2813"]
[TimeControl "180+1"]
[EndTime "8:16:48 PST"]
[Termination "ilqar_74 won on time"]

1. d4 {[%clk 0:03:00.9]} 1... Nf6 {[%clk 0:02:52.1]} 2. c4 {[%clk 0:03:00.7]}
2... e6 {[%clk 0:02:51.3]} 3. a3 {[%clk 0:03:00.5]} 3... d5 {[%clk 0:02:51.8]}
4. Nf3 {[%clk 0:02:46.8]} 4... Be7 {[%clk 0:02:50.5]} 5. Nc3 {[%clk 0:02:45]}
5... O-O {[%clk 0:02:50.5]} 6. Bf4 {[%clk 0:02:36.9]} 6... a6 {[%clk 0:02:50.1]}
7. e3 {[%clk 0:02:23.8]} 7... dxc4 {[%clk 0:02:50.2]} 8. Bxc4 {[%clk 0:02:22.2]}
8... b5 {[%clk 0:02:50.8]} 9. Bd3 {[%clk 0:02:08.3]} 9... Bb7 {[%clk 0:02:50.7]}
10. Qc2 {[%clk 0:02:04.2]} 10... Nbd7 {[%clk 0:02:48.6]} 11. Rd1 {[%clk
0:02:01.6]} 11... Rc8 {[%clk 0:02:46.1]} 12. b4 {[%clk 0:01:52.6]} 12... a5
{[%clk 0:02:36.7]} 13. Rb1 {[%clk 0:01:40.6]} 13... axb4 {[%clk 0:02:34.4]} 14.
axb4 {[%clk 0:01:41.5]} 14... c6 {[%clk 0:02:30.9]} 15. Ne5 {[%clk 0:01:35.3]}
15... Nb6 {[%clk 0:02:27.9]} 16. Ne4 {[%clk 0:01:31.1]} 16... Nxe4 {[%clk
0:02:24.8]} 17. Bxe4 {[%clk 0:01:32]} 17... h6 {[%clk 0:02:24.3]} 18. Bg3 {[%clk
0:01:02.8]} 18... Nd5 {[%clk 0:02:22.7]} 19. Nd3 {[%clk 0:00:59]} 19... c5
{[%clk 0:01:39.4]} 20. Nxc5 {[%clk 0:00:46.7]} 20... Nxb4 {[%clk 0:01:38.2]} 21.
Rxb4 {[%clk 0:00:39.7]} 21... Bxe4 {[%clk 0:01:38.2]} 22. Qxe4 {[%clk
0:00:31.6]} 22... Qa5 {[%clk 0:01:38.8]} 23. Qb1 {[%clk 0:00:18.8]} 23... Rxc5
{[%clk 0:01:37.7]} 24. O-O {[%clk 0:00:09]} 24... Rh5 {[%clk 0:01:36.6]} 25. Rb3
{[%clk 0:00:07.4]} 25... b4 {[%clk 0:01:36]} 26. Qd3 {[%clk 0:00:07.7]} 26...
Qb5 {[%clk 0:01:33.8]} 27. Qc2 {[%clk 0:00:03.5]} 27... Rd5 {[%clk 0:01:23.7]}
28. Rfb1 {[%clk 0:00:03.6]} 28... Rdd8 {[%clk 0:01:23.6]} 29. h3 {[%clk
0:00:04]} 29... Rc8 {[%clk 0:01:23.8]} 30. Qd2 {[%clk 0:00:03.8]} 30... Rc4
{[%clk 0:01:22.7]} 31. Qd3 {[%clk 0:00:03]} 31... Rfc8 {[%clk 0:01:19.4]} 32.
Kh2 {[%clk 0:00:03.2]} 32... Qc6 {[%clk 0:01:16]} 33. e4 {[%clk 0:00:02.1]}
33... Rc3 {[%clk 0:01:16.3]} 34. Qd2 {[%clk 0:00:01.9]} 34... Rxb3 {[%clk
0:01:15.2]} 35. Rxb3 {[%clk 0:00:01.7]} 35... Qxe4 {[%clk 0:01:13]} 36. Rb2
{[%clk 0:00:01.1]} 36... Rd8 {[%clk 0:01:02.8]} 0-1

[Event "Early-Titled-Tuesday-Blitz-February-06-2024"]
[Site "Chess.com"]
[Date "2024.02.06"]
[Round "2"]
[White "Balla_Tamas"]
[Black "dianamirza"]
[Result "1-0"]
[WhiteElo "2412"]
[BlackElo "1965"]
[TimeControl "180+1"]
[EndTime "8:16:51 PST"]
[Termination "Balla_Tamas won on time"]

1. e4 {[%clk 0:03:00.9]} 1... c5 {[%clk 0:02:50.8]} 2. c3 {[%clk 0:02:59.9]}
2... Nf6 {[%clk 0:02:48.5]} 3. e5 {[%clk 0:03:00.2]} 3... Nd5 {[%clk 0:02:48.6]}
4. d4 {[%clk 0:03:00.9]} 4... cxd4 {[%clk 0:02:47.9]} 5. Nf3 {[%clk 0:03:01.7]}
5... d6 {[%clk 0:02:47]} 6. cxd4 {[%clk 0:03:01.8]} 6... Nc6 {[%clk 0:02:43.9]}
7. Bc4 {[%clk 0:03:02.3]} 7... e6 {[%clk 0:02:43.6]} 8. O-O {[%clk 0:02:59.3]}
8... Be7 {[%clk 0:02:43.8]} 9. Qe2 {[%clk 0:02:59.4]} 9... O-O {[%clk
0:02:43.9]} 10. Rd1 {[%clk 0:02:59.6]} 10... Na5 {[%clk 0:02:31.5]} 11. Bxd5
{[%clk 0:02:58.8]} 11... exd5 {[%clk 0:02:30.6]} 12. Nc3 {[%clk 0:02:59.5]}
12... Be6 {[%clk 0:02:24.5]} 13. Bf4 {[%clk 0:02:45.3]} 13... Rc8 {[%clk
0:02:06.7]} 14. Nb5 {[%clk 0:02:34.3]} 14... dxe5 {[%clk 0:01:47.6]} 15. dxe5
{[%clk 0:02:35.2]} 15... Qb6 {[%clk 0:01:41.3]} 16. Nd6 {[%clk 0:02:30]} 16...
Rc6 {[%clk 0:01:21.4]} 17. b3 {[%clk 0:02:27.6]} 17... Rd8 {[%clk 0:00:51.4]}
18. Nd4 {[%clk 0:02:25.8]} 18... Rc7 {[%clk 0:00:35.7]} 19. Nxe6 {[%clk
0:02:22.1]} 19... fxe6 {[%clk 0:00:34]} 20. Qg4 {[%clk 0:02:22.7]} 20... Bxd6
{[%clk 0:00:17.3]} 21. exd6 {[%clk 0:02:15.8]} 21... Rxd6 {[%clk 0:00:15.7]} 22.
Bxd6 {[%clk 0:02:08.3]} 22... Qxd6 {[%clk 0:00:16.4]} 23. Qa4 {[%clk 0:02:02.5]}
23... Nc6 {[%clk 0:00:15.5]} 24. Rac1 {[%clk 0:02:02]} 24... a6 {[%clk
0:00:14.3]} 25. a3 {[%clk 0:02:01.3]} 25... e5 {[%clk 0:00:12.3]} 26. b4 {[%clk
0:02:01.4]} 26... d4 {[%clk 0:00:12.4]} 27. Qb3+ {[%clk 0:01:47]} 27... Rf7
{[%clk 0:00:07.6]} 28. Rc5 {[%clk 0:01:42.9]} 28... Qf6 {[%clk 0:00:07]} 29. Qg3
{[%clk 0:01:31.9]} 29... e4 {[%clk 0:00:04.9]} 30. Rd5 {[%clk 0:01:32.1]} 30...
e3 {[%clk 0:00:04.8]} 31. fxe3 {[%clk 0:01:28]} 31... dxe3 {[%clk 0:00:03.9]}
32. h3 {[%clk 0:01:02.7]} 32... Qf2+ {[%clk 0:00:02.3]} 33. Qxf2 {[%clk
0:01:00.4]} 33... Rxf2 {[%clk 0:00:02.1]} 34. Rd7 {[%clk 0:00:55.4]} 34... b5
{[%clk 0:00:01.5]} 35. Rc1 {[%clk 0:00:52.5]} 1-0

[Event "Early-Titled-Tuesday-Blitz-February-06-2024"]
[Site "Chess.com"]
[Date "2024.02.06"]
[Round "2"]
[White "Genghis_K"]
[Black "Tsschessulover"]
[Result "1-0"]
[WhiteElo "2904"]
[BlackElo "2609"]
[TimeControl "180+1"]
[EndTime "8:16:53 PST"]
[Termination "Genghis_K won by resignation"]

1. e4 {[%clk 0:03:00.9]} 1... e5 {[%clk 0:02:56]} 2. Nf3 {[%clk 0:03:01.1]} 2...
Nf6 {[%clk 0:02:55.7]} 3. d4 {[%clk 0:02:58.9]} 3... Nxe4 {[%clk 0:02:55.7]} 4.
Bd3 {[%clk 0:02:59.3]} 4... d5 {[%clk 0:02:52.6]} 5. Nxe5 {[%clk 0:02:58.6]}
5... Nd7 {[%clk 0:02:52.9]} 6. Nc3 {[%clk 0:02:59]} 6... Nxe5 {[%clk 0:02:44.4]}
7. dxe5 {[%clk 0:02:58.9]} 7... Bb4 {[%clk 0:02:44.5]} 8. O-O {[%clk 0:02:58.8]}
8... Nxc3 {[%clk 0:02:43.7]} 9. bxc3 {[%clk 0:02:59.1]} 9... Bxc3 {[%clk
0:02:44.6]} 10. Rb1 {[%clk 0:02:59.6]} 10... O-O {[%clk 0:02:45]} 11. Bxh7+
{[%clk 0:03:00.1]} 11... Kxh7 {[%clk 0:02:45.5]} 12. Qd3+ {[%clk 0:03:00.8]}
12... Kg8 {[%clk 0:02:43.8]} 13. Qxc3 {[%clk 0:03:01.5]} 13... a5 {[%clk
0:02:39.5]} 14. f4 {[%clk 0:03:01.2]} 14... Qd7 {[%clk 0:02:08.7]} 15. f5 {[%clk
0:02:54.2]} 15... Ra6 {[%clk 0:01:48.4]} 16. Qg3 {[%clk 0:02:49.4]} 16... Qa4
{[%clk 0:01:36.8]} 17. h3 {[%clk 0:02:20.3]} 17... Bxf5 {[%clk 0:01:00.5]} 18.
Rxb7 {[%clk 0:00:55.7]} 18... Rg6 {[%clk 0:00:55.5]} 19. Qf4 {[%clk 0:00:49]}
19... Qxc2 {[%clk 0:00:54]} 20. Rf2 {[%clk 0:00:45.8]} 20... Qd1+ {[%clk
0:00:52.5]} 21. Kh2 {[%clk 0:00:46]} 21... c6 {[%clk 0:00:20.4]} 22. Ba3 {[%clk
0:00:29]} 22... Bc8 {[%clk 0:00:10]} 23. Rc7 {[%clk 0:00:21.7]} 1-0

[Event "Early-Titled-Tuesday-Blitz-February-06-2024"]
[Site "Chess.com"]
[Date "2024.02.06"]
[Round "2"]
[White "KaterynaLagno"]
[Black "Let_it_be_1"]
[Result "1-0"]
[WhiteElo "2840"]
[BlackElo "2581"]
[TimeControl "180+1"]
[EndTime "8:16:53 PST"]
[Termination "KaterynaLagno won by resignation"]

1. e4 {[%clk 0:03:00.9]} 1... e6 {[%clk 0:03:00.1]} 2. d4 {[%clk 0:03:00.5]}
2... d5 {[%clk 0:03:00.4]} 3. e5 {[%clk 0:03:00.4]} 3... c5 {[%clk 0:03:00.2]}
4. c3 {[%clk 0:03:01.1]} 4... Qb6 {[%clk 0:03:00.5]} 5. Nf3 {[%clk 0:03:01.2]}
5... Nc6 {[%clk 0:03:01]} 6. Be2 {[%clk 0:02:50.7]} 6... Nh6 {[%clk 0:02:56.1]}
7. O-O {[%clk 0:02:48.1]} 7... cxd4 {[%clk 0:02:51.9]} 8. cxd4 {[%clk 0:02:47]}
8... Nf5 {[%clk 0:02:51.8]} 9. Nc3 {[%clk 0:02:43.6]} 9... Ncxd4 {[%clk
0:02:43.8]} 10. Nxd4 {[%clk 0:02:41.8]} 10... Nxd4 {[%clk 0:02:43.5]} 11. Bd3
{[%clk 0:02:37.9]} 11... Nc6 {[%clk 0:02:28.6]} 12. Qe2 {[%clk 0:02:19.8]} 12...
a6 {[%clk 0:02:21.9]} 13. a3 {[%clk 0:02:14.9]} 13... Bd7 {[%clk 0:02:19]} 14.
Bf4 {[%clk 0:02:13]} 14... Be7 {[%clk 0:02:11.6]} 15. Qg4 {[%clk 0:02:06.7]}
15... Qd4 {[%clk 0:01:59.8]} 16. Qxg7 {[%clk 0:01:56.5]} 16... O-O-O {[%clk
0:01:56.6]} 17. Qg3 {[%clk 0:01:56]} 17... f6 {[%clk 0:01:15.1]} 18. Ne2 {[%clk
0:01:45.9]} 18... Qb6 {[%clk 0:01:12.2]} 19. exf6 {[%clk 0:01:41.5]} 19... Bxf6
{[%clk 0:01:11.1]} 20. Be3 {[%clk 0:01:38]} 20... Qb3 {[%clk 0:00:52.9]} 21.
Rfd1 {[%clk 0:01:18.1]} 21... Rhg8 {[%clk 0:00:47.5]} 22. Qd6 {[%clk 0:01:10.9]}
22... Be7 {[%clk 0:00:43.7]} 23. Qf4 {[%clk 0:01:10.5]} 23... e5 {[%clk
0:00:44]} 24. Qh6 {[%clk 0:01:09.1]} 24... e4 {[%clk 0:00:33.7]} 25. Bxa6 {[%clk
0:01:00.8]} 25... bxa6 {[%clk 0:00:30.2]} 26. Nd4 {[%clk 0:00:59.7]} 26... Qb7
{[%clk 0:00:21.1]} 27. Rac1 {[%clk 0:00:58.8]} 27... Rg6 {[%clk 0:00:20.5]} 28.
Qxh7 {[%clk 0:00:59.4]} 28... Rdg8 {[%clk 0:00:17.1]} 29. Qxe7 {[%clk
0:00:51.5]} 29... Rxg2+ {[%clk 0:00:13.8]} 30. Kh1 {[%clk 0:00:52]} 30... Kb8
{[%clk 0:00:13.7]} 31. Nxc6+ {[%clk 0:00:47.6]} 31... Bxc6 {[%clk 0:00:13.2]}
32. Qd6+ {[%clk 0:00:48.3]} 32... Qc7 {[%clk 0:00:09.3]} 33. Rxc6 {[%clk
0:00:48.3]} 33... Qxd6 {[%clk 0:00:05.1]} 34. Rxd6 {[%clk 0:00:49.2]} 1-0

[Event "Early-Titled-Tuesday-Blitz-February-06-2024"]
[Site "Chess.com"]
[Date "2024.02.06"]
[Round "2"]
[White "Mesa_1"]
[Black "Gryffindorac8"]
[Result "0-1"]
[WhiteElo "2537"]
[BlackElo "2367"]
[TimeControl "180+1"]
[EndTime "8:16:54 PST"]
[Termination "Gryffindorac8 won by checkmate"]

1. d4 {[%clk 0:03:00.9]} 1... Nf6 {[%clk 0:02:59.5]} 2. c4 {[%clk 0:03:01.3]}
2... c5 {[%clk 0:02:59.5]} 3. d5 {[%clk 0:03:01.4]} 3... b5 {[%clk 0:02:59.7]}
4. Qc2 {[%clk 0:03:01.8]} 4... b4 {[%clk 0:02:57.6]} 5. e4 {[%clk 0:03:02.1]}
5... d6 {[%clk 0:02:57.5]} 6. a3 {[%clk 0:03:00.9]} 6... a5 {[%clk 0:02:57.2]}
7. h3 {[%clk 0:02:53]} 7... g6 {[%clk 0:02:57]} 8. Bd3 {[%clk 0:02:53.4]} 8...
Bg7 {[%clk 0:02:56.6]} 9. Be3 {[%clk 0:02:54.1]} 9... O-O {[%clk 0:02:56.4]} 10.
Nf3 {[%clk 0:02:54.8]} 10... e6 {[%clk 0:02:51.4]} 11. Nbd2 {[%clk 0:02:54]}
11... exd5 {[%clk 0:02:46.6]} 12. exd5 {[%clk 0:02:45.4]} 12... Nbd7 {[%clk
0:02:42.5]} 13. O-O {[%clk 0:02:45.6]} 13... Re8 {[%clk 0:02:34.5]} 14. Rfe1
{[%clk 0:02:44.9]} 14... Nb6 {[%clk 0:02:24]} 15. axb4 {[%clk 0:02:44.8]} 15...
axb4 {[%clk 0:02:24.9]} 16. Rxa8 {[%clk 0:02:44.3]} 16... Nxa8 {[%clk
0:02:25.8]} 17. Bf4 {[%clk 0:02:41.1]} 17... Rxe1+ {[%clk 0:02:20.3]} 18. Nxe1
{[%clk 0:02:42]} 18... Qe7 {[%clk 0:02:13.2]} 19. Nef3 {[%clk 0:02:42.6]} 19...
Nb6 {[%clk 0:02:10.4]} 20. b3 {[%clk 0:02:42]} 20... Nh5 {[%clk 0:01:55.8]} 21.
Bh2 {[%clk 0:02:41.3]} 21... Nd7 {[%clk 0:01:50]} 22. g4 {[%clk 0:02:39.2]}
22... Nhf6 {[%clk 0:01:46.3]} 23. Kg2 {[%clk 0:02:39.8]} 23... Ne8 {[%clk
0:01:45.6]} 24. Qa2 {[%clk 0:02:36.4]} 24... Ne5 {[%clk 0:01:43.1]} 25. Bxe5
{[%clk 0:02:35.2]} 25... Bxe5 {[%clk 0:01:41.5]} 26. Ne4 {[%clk 0:02:23]} 26...
f5 {[%clk 0:01:16.8]} 27. gxf5 {[%clk 0:02:23.9]} 27... Bxf5 {[%clk 0:01:15.8]}
28. Qa8 {[%clk 0:02:18]} 28... Kg7 {[%clk 0:00:46.4]} 29. Qa2 {[%clk 0:02:07.2]}
29... Nf6 {[%clk 0:00:20.8]} 30. Nxf6 {[%clk 0:01:56]} 30... Bxd3 {[%clk
0:00:21.7]} 31. Ng4 {[%clk 0:01:51.1]} 31... Bc3 {[%clk 0:00:15.7]} 32. Qa8
{[%clk 0:01:32.9]} 32... h5 {[%clk 0:00:15.1]} 33. Ne3 {[%clk 0:01:33.5]} 33...
Be4 {[%clk 0:00:15.2]} 34. Kg3 {[%clk 0:01:23]} 34... Qf7 {[%clk 0:00:11.7]} 35.
Ng5 {[%clk 0:00:49.8]} 35... Be5+ {[%clk 0:00:10.3]} 36. Kh4 {[%clk 0:00:50.5]}
36... Qxf2# {[%clk 0:00:06.8]} 0-1